Workbook

Sheet Cover Page
A1: SIGN POST SELECTION GUIDE
C5: Post Selection Worksheets For:
D7: - Channel / Wood / PSST Posts
D8: - Pipe Posts
D9: - Structural Posts with Post Spacing
C11: Select The Appropriate Worksheet Based Off
C12: the General Sign Selection Table Below:
D14: General Sign Selection Table
E15: Sign Area | F15: Sign Width
E16: SQ.FT | F16: FT.
D17: Wood | E17: up to 50 | F17: up to 8
D18: Channel | E18: up to 30 | F18: up to 8
D19: PSST | E19: up to 24 | F19: up to 6
D20: Pipe | E20: up to 58.5 | F20: up to 10
D21: Structural | E21: 21 - 540 | F21: 5 to 30
D23: - Both Sign Area and Width Must Be Valid
D24: for Post Selection
C26: Revised August 2022

Sheet Structural Post Selector
A1: Structural Shoulder Mounted Post Selector
C4: Sign:
C6: Instructions
C7: -Fill in all shaded boxes.
C8: -Press the Enter key after each selection.
C10: Clear Height | H10: ft | S10: Number of Posts: | Z10: =IF(K10=0," ",stpostnum(K10,K11,K12)) -> 
C11: Sign | H11: width, ft | S11: Design Number: | Z11: =IF(K10=0," ",design(K10,K11,K12)) -> 
C12: Dimensions | H12: height, ft | Q12: Nom. Size (in.) (lbs/ft): | Z12: =(IF(Z11=1,"W6x9",IF(Z11=2,"W6x15",IF(Z11=3,"W8x18",IF(Z11=4,"W10x22",IF(Z11=5,"W10x26",IF(Z11=6,"W12x26"," "))))))) -> 
V14: =IF(AND(wd<7,wd*ht>0,Z10=0),"Error: Sign Too Small For Structural Post",(IF(AND(Z11=0,wd*ht>0),"Error: Invalid Sign Size"," "))) -> 
J22: =IF(AND(wd<7,F14>0),"Error: Sign Too Small For Structural Post",(IF(AND(Z11=0,F14>0),"Error: Invalid Sign Size"," "))) -> 
C24: CLEAR HEIGHT | D24: (Length of Longest Post)
AE25: MIN. 7 ft 9 in
E26: =IF(AND(Z10 = 3, Z11 > 2,TRUNC((1/3)*wd) < 7),TRUNC((wd-(H26*2))*0.5),IF(Z10=3,TRUNC((1/6)*wd),"-")) -> - | F26: ft | H26: =IF(AND(Z10 = 3, Z11 > 2,TRUNC((1/3)*wd) < 7),7,IF(Z10=3,TRUNC((1/3)*wd),"-")) -> - | I26: ft | L26: =IF(AND(Z10 = 3, Z11 > 2,TRUNC((1/3)*wd) < 7),7,IF(Z10=3,TRUNC((1/3)*wd),"-")) -> - | M26: ft | O26: =IF(AND(Z10 = 3, Z11 > 2,TRUNC((1/3)*wd) < 7),TRUNC((wd-(H26*2))*0.5),IF(Z10=3,TRUNC((1/6)*wd),"-")) -> - | P26: ft | S26: =IF(AND(Z10 = 2, Z11 > 2,TRUNC(wd-(((1/5)*wd)*2)) < 7),TRUNC((wd-W26)*0.5),IF(Z10=2,TRUNC((1/5)*wd),"-")) -> - | T26: ft | W26: =IF(AND(Z10 = 2, Z11 > 2,TRUNC(wd-(((1/5)*wd)*2)) < 7),7,IF(Z10=2,TRUNC(wd-(((1/5)*wd)*2)),"-")) -> - | X26: ft | AA26: =IF(AND(Z10 = 2, Z11 > 2,TRUNC(wd-(((1/5)*wd)*2)) < 7),TRUNC((wd-W26)*0.5),IF(Z10=2,TRUNC((1/5)*wd),"-")) -> - | AB26: ft
E27: =IF(AND(Z10 = 3, Z11 > 2,TRUNC((1/3)*wd) < 7),(((wd-(H26*2))*0.5)-E26)*12,IF(Z10=3,(((1/6)*wd)-E26)*12,"-")) -> - | F27: in | H27: =IF(AND(Z10=3,Z11>2,TRUNC((1/3)*wd)<7),0,IF(Z10=3,(((wd*12)-((ROUND(((1/6)*wd)*12,0)*2)))/2)-(H26*12),"-")) -> - | I27: in | L27: =IF(AND(Z10=3,Z11>2,TRUNC((1/3)*wd)<7),0,IF(Z10=3,(((wd*12)-((ROUND(((1/6)*wd)*12,0)*2)))/2)-(H26*12),"-")) -> - | M27: in | O27: =IF(AND(Z10 = 3, Z11 > 2,TRUNC((1/3)*wd) < 7),(((wd-(H26*2))*0.5)-E26)*12,IF(Z10=3,(((1/6)*wd)-E26)*12,"-")) -> - | P27: in | S27: =IF(AND(Z10 = 2, Z11 > 2,TRUNC(wd-(((1/5)*wd)*2)) < 7),(((wd-W26)*0.5)-S26)*12,IF(Z10=2,(((1/5)*wd)-S26)*12,"-")) -> - | T27: in | W27: =IF(AND(Z10=2,Z11>2,TRUNC(wd-(((1/5)*wd)*2))<7),0,IF(Z10=2,((wd*12)-((ROUND(((1/5)*wd)*12,0)*2))-(W26*12)),"-")) -> - | X27: in | AA27: =IF(AND(Z10 = 2, Z11 > 2,TRUNC(wd-(((1/5)*wd)*2)) < 7),(((wd-W26)*0.5)-S26)*12,IF(Z10=2,(((1/5)*wd)-S26)*12,"-")) -> - | AB27: in

Sheet Pipe Post Selector
A1: Pipe Mounted Post Selector
C5: Sign:
C7: Instructions
C8: -Fill in all shaded boxes.
C9: -Press the Enter key after each selection.
C10: -This worksheet automatically calculates post size for rectangular signs only.
C11: -For Warning, Yield, and Stop signs use the Pipe Post Selection Table.
C13: Sign | H13: width ft | Q13: Number of Posts: | X13: =(IF(width=0," ",(IF(width>10,"Error",(IF(X15>58.5,"Error",(IF(width<=4,1,2)+AND(width=4,height>8,1,2)-AND(width=4.5,height<=1.5,1,2)))))))) -> 
C14: Dimensions | H14: height ft | Q14: Post Size: | X14: =(IF(width=0," ",(IF(X15<15,2.5,4)))) ->  | Z14: in
Q15: Sign Size: | X15: =IF(width=0,0,width*height) -> 0 | Z15: sq. ft.
I16: =(IF(AND(width=1,height>10),"Error: Invalid Sign Size",(IF(AND(width=3,height>=10),"Error: Invalid Sign Size",(IF(X15>58.5,"Sign Too Big: Use Structural Post",(IF(width>10,"Too Wide For two Pipe Posts: Use Structural"," ")))))))) ->  | Q16: Sign Type: | X16: =(IF(width=0," ",IF(OR(width=5.5,width=6.5,width=7.5),"Use 1 ft Increments for Extruded",IF(AND(X15<=58.5,K13<=5),"Flat Sheet","Extruded")))) -> 
I25: MIN 5 ft - Rural | J25: OR | K25: MIN 7 ft - Urban | W25: Shortest Post ≥ 5 ft
L28: =IF(X13=2,TRUNC((1/5)*width), "-") -> - | M28: ft | P28: =IF(X13=2,TRUNC((3/5)*width),"-") -> - | Q28: ft | T28: =IF(X13=2,TRUNC((1/5)*width), "-") -> - | U28: ft
L29: =IF(X13=2,(((1/5)*width)-L28)*12,"-") -> - | M29: in | P29: =IF(X13=2,(((3/5)*width)-P28)*12,"-") -> - | Q29: in | T29: =IF(X13=2,(((1/5)*width)-L28)*12,"-") -> - | U29: in
C35: Warning, Yield, and Stop Signs | R35: Pipe Post Notes
C36: Sign Size | F36: Sign Type | L36: Post Required | R36: - Max sign width on one pipe post = 4 ft
C37: 36" x 36" | F37: Warning Signs 1 | L37: 1 - 2.5" Post | R37: - Max sign width on two pipe posts = 10 ft
C38: 36" x 36" | F38: Warning Signs 2 | L38: 1 - 2.5" Post | R38: - Max sign sqft on pipe post = 58.5 sqft
C39: 48" x 48" | F39: Warning Signs 3 | L39: 1 - 4" Post | R39: - Pipe post size = inside pipe diameter
C40: 48" x 48" | F40: Yield Signs 3 | L40: 1 - 4" Post | R40: - For signs widths between sizes shown, go to
C41: 60" x 60" | F41: Yield Signs 4 | L41: 1 - 4" Post | R41: next largest width (example: a sign that is
C42: 36" x 36" | F42: Stop Signs 1 | L42: 1 - 2.5" Post | R42: 2-1/2' wide, use the chart for a sign width = 3'
C43: 36" x 36" | F43: Stop Signs 3,4 | L43: 1 - 4" Post
C44: 48" x 48" | F44: Stop Signs 3,4 | L44: 1 - 4" Post
C45: 54" x 18" | F45: One Way Signs 1 | L45: 1 - 2.5" Post
C46: 1 - without plaques
C47: 2 - with plaques
C48: 3 - with or without plaques
C49: 4 - with or without 54" x 18" or 36" x 12" one way signs mounted above

Sheet Wood Post Selector
A1: Wood Mounted Sign Post Selector
B4: Sign:
B6: Instructions
B7: -Fill in all shaded boxes.
B8: -Press the Enter key after each selection.
B10: Sign | G10: width ft | P10: Number of Posts: | W10: =IF(J10=0," ",(IF(W12>50,"Error",(IF(J10>8,"Error",(IF(W12=0,0,(IF(J10>=16,2,(IF(AND(W12<=16,J10<4),1,2))))))))))) -> 
B11: Dimensions | G11: height ft | P11: Post Size: | W11: =IF(J10=0," ",IF(OR(J10=5.5,J10=6.5,J10=7.5),0,(IF(W12=0,0,(IF(W12>30,"6X6",(IF(W12>16,"4X6",(IF(AND(W12>10,W12<=16,W10=1),"4X6","4X4")))))))))) ->  | Z11: in.
P12: Sign Size: | W12: =IF(J10=0," ",J11*J10) ->  | Z12: sq. ft.
H13: =(IF(W12=" ", " ",IF(W12>50,"Sign Too Big: Use Structural Post",(IF(J10>8,"Too Wide for 2 Wood Posts: Use Structural"," "))))) ->  | P13: Sign Type: | W13: =IF(J10=0," ",IF(OR(J10=5.5,J10=6.5,J10=7.5),"Use 1 ft Increments for Extruded",IF(AND(W12<=30,J10<6),"Flat Sheet","Extruded"))) -> 
F24: MIN 5 ft - Rural | H24: MIN 7 ft - Urban | U24: Shortest Post ≥ 5ft
G25: OR
J27: =IF(W10=2,TRUNC((1/5)*J10), "-") -> - | K27: ft | N27: =IF(W10=2,TRUNC((3/5)*J10),"-") -> - | O27: ft | R27: =IF(W10=2,TRUNC((1/5)*J10), "-") -> - | S27: ft
J28: =IF(W10=2,(((1/5)*J10)-J27)*12,"-") -> - | K28: in | N28: =IF(W10=2,(((3/5)*J10)-N27)*12,"-") -> - | O28: in | R28: =IF(W10=2,(((1/5)*J10)-J27)*12,"-") -> - | S28: in

Sheet PSST Post Selector
A1: PSST Mounted Sign Post Selector
C4: Sign:
C6: Instructions: | D6: -Fill in all shaded boxes.
D7: -Press the Enter key after each selection.
D8: -Width and height should be entered in half-foot increments (up to a maximum of 8 feet).
I10: =IF(I11=2,"Double Post Installation",IF(I11=1,"Single Post Installation","")) -> Double Post Installation | N10: =IF(N11=3,"Triple Post Installation","") -> Triple Post Installation
F11: Number of Posts: | I11: =IF(OR(D12="",D12=0,D12>15,I12="Sign too big. Use different post."),"",H44) -> 2 | M11: =IF(OR(C41=6,C41=6.5,C41=7,C41=7.5,C41=8),"OR","") -> OR | N11: =IF(N12="Sign too big. Use different post.","",IF(OR(D12="",D12=0),"",IF(D12>15,"",IF(N12="-","-",M44)))) -> 3
B12: Clear Height: | D12: 5 | E12: ft. | H12: Post Size: | I12: =H42 -> 2.5" w/ 2.25" inside | N12: =M42 -> 2.5"
B13: Sign Width: | D13: 7 | E13: ft. | I13: =IF(I11="","","12 gauge") -> 12 gauge | N13: =IF(OR(N11="",N11="-"),"","12 gauge") -> 12 gauge
B14: Sign Height: | D14: 8 | E14: ft. | I14: =H43 -> BREAKAWAY REQUIRED | N14: =M43 -> BREAKAWAY REQUIRED
F15: =IF(D12>15,"ERROR: Clear height must be less than or equal to 15'.","") -> 
D25: MIN 5 ft - Rural OR MIN 7 ft - Urban
Q26: Not less than 5 ft
E28: =IF(I11=2,TRUNC((1/5)*D13),"-") -> 1 | F28: ft. | G28: =IF(I11=2,TRUNC(D13*3/5),"-") -> 4 | H28: ft. | I28: =IF(I11=2,TRUNC((1/5)*D13),"-") -> 1 | J28: ft. | K28: =IF(N11=3,TRUNC(1/6*D13),"-") -> 1 | L28: ft. | O28: =IF(N11=3,TRUNC(1/6*D13),"-") -> 1 | P28: ft.
E29: =IF(I11=2,(((1/5)*D13)-E28)*12,"-") -> 4.8 | F29: in. | G29: =IF(I11=2,(((D13*3/5)-G28)*12),"-") -> 2.4 | H29: in. | I29: =IF(I11=2,(((1/5)*D13)-I28)*12,"-") -> 4.8 | J29: in. | K29: =IF(N11=3,(((1/6)*D13)-K28)*12,"-") -> 2 | L29: in. | O29: =IF(N11=3,(((1/6)*D13)-O28)*12,"-") -> 2 | P29: in.
E30: CLEAR HEIGHT | K30: CLEAR HEIGHT | L30: =IF(N11=3,TRUNC(1/3*D13),"-") -> 2 | M30: ft. | N30: =IF(N11=3,TRUNC(1/3*D13),"-") -> 2 | O30: ft.
L31: =IF(N11=3,(((1/3)*D13)-L30)*12,"-") -> 4 | M31: in. | N31: =IF(N11=3,(((1/3)*D13)-N30)*12,"-") -> 4 | O31: in.
H40: Single | J40: Double | L40: >7' Width | M40: Triple
A41: Sign Width: | C41: =(ROUNDUP(D13/0.5,0))/2 -> 7 | H41: =IF(C41=1,VLOOKUP(C42,B54:O68,C44-1),IF(C41=1.5,VLOOKUP(C42,B72:O86,C44-1),IF(C41=2,VLOOKUP(C42,B90:O104,C44-1),IF(C41=2.5,VLOOKUP(C42,B108:O122,C44-1),IF(C41=3,VLOOKUP(C42,B126:O140,C44-1),IF(C41=3.5,VLOOKUP(C42,B144:O158,C44-1),"")))))) ->  | J41: =IF(C41=4,VLOOKUP(C42,B274:O288,C44-1),IF(C41=4.5,VLOOKUP(C42,B292:O306,C44-1),IF(C41=5,VLOOKUP(C42,B310:O324,C44-1),IF(C41=5.5,VLOOKUP(C42,B328:O342,C44-1),IF(C41=6,VLOOKUP(C42,B346:O360,C44-1),IF(C41=6.5,VLOOKUP(C42,B364:O378,C44-1),IF(C41=7,VLOOKUP(C42,B382:O396,C44-1),""))))))) -> 2.5" w/ 2.25" inside | L41: =IF(C41=7.5,VLOOKUP(C42,B400:O414,C44-1),IF(C41=8,VLOOKUP(C42,B418:O432,C44-1),"")) ->  | M41: =IF(C41=6,VLOOKUP(C42,B602:O616,C44-1),IF(C41=6.5,VLOOKUP(C42,B620:O634,C44-1),IF(C41=7,VLOOKUP(C42,B638:O652,C44-1),IF(C41=7.5,VLOOKUP(C42,B656:O670,C44-1),IF(C41=8,VLOOKUP(C42,B674:O688,C44-1),""))))) -> 2.5"
A42: Sign Height: | C42: =(ROUNDUP(D14/0.5,0))/2 -> 8 | E42: Post Size: | H42: =IF(OR(D12="",D12=0,D13>8,D14>8),"",IF(C44>15,"ERROR: Distance too great.",IF(OR(C41=7.5,C41=8),L41,IF(C41<4,H41,IF(C41>=4,J41,""))))) -> 2.5" w/ 2.25" inside | M42: =IF(OR(D12="",D12=0,C41>8,C42>8),"",IF(D12>15,"ERROR: Distance too great.",IF(C41>=6,M41,""))) -> 2.5"
A43: Ground to bottom of sign: | H43: =IF(AND(H44=2,H42=H46),"BREAKAWAY REQUIRED",IF(H42=I46,"BREAKAWAY REQUIRED",IF(AND(H44=3,H42=H46),"BREAKAWAY REQUIRED",IF(AND(H44=3,H42=L46),"BREAKAWAY REQUIRED",IF(H42="-","-",""))))) -> BREAKAWAY REQUIRED | M43: =IF(OR(M42="",M42="-"),"",IF(M42="Sign too big. Use different post.","",IF(M44=3,"BREAKAWAY REQUIRED",""))) -> BREAKAWAY REQUIRED
C44: =IF(D12<5,5,ROUNDUP(D12,0)) -> 5 | F44: Number of Posts: | H44: =IF(C41>8,"ERROR: Too wide.",IF(C42>8,"ERROR: Too tall.",IF(OR(C41="",C41=0),"",IF(C41<4,1,IF(C41>=4,2,""))))) -> 2 | M44: =IF(C41>8,"ERROR: Too wide.",IF(C42>8,"ERROR: Too tall.",IF(C41>=6,3,""))) -> 3
B46: 2.5 inch post with a 2.25" post inside & slip base | H46: 2.5" | I46: 2.5" w/ 2.25" inside | L46: 2"
B48: Sign is too big for PSST. | E48: Slip base required when using 2.5" post w/ 2.25" inside or when using 2 or more 2.5" posts.
A50: SINGLE POST - 5' MOUNTING HEIGHT
E52: 5
A53: width | B53: height | C53: centroid | D53: area | E53: 5 | F53: 6 | G53: 7 | H53: 8 | I53: 9 | J53: 10 | K53: 11 | L53: 12 | M53: 13 | N53: 14 | O53: 15
A54: 1 | B54: 1 | C54: =B54/2 -> 0.5 | D54: =A54*B54 -> 1 | E54: 2" | F54: 2" | G54: 2" | H54: 2" | I54: 2" | J54: 2" | K54: 2" | L54: 2" | M54: 2" | N54: 2" | O54: 2"
A55: 1 | B55: =B54+0.5 -> 1.5 | C55: =B55/2 -> 0.75 | D55: =A55*B55 -> 1.5 | E55: 2" | F55: 2" | G55: 2" | H55: 2" | I55: 2" | J55: 2" | K55: 2" | L55: 2" | M55: 2" | N55: 2" | O55: 2"
A56: 1 | B56: =B55+0.5 -> 2 | C56: 1 | D56: 2 | E56: 2" | F56: 2" | G56: 2" | H56: 2" | I56: 2" | J56: 2" | K56: 2" | L56: 2" | M56: 2" | N56: 2" | O56: 2"
A57: 1 | B57: 2.5 | C57: 1.25 | D57: 2.5 | E57: 2" | F57: 2" | G57: 2" | H57: 2" | I57: 2" | J57: 2" | K57: 2" | L57: 2" | M57: 2" | N57: 2" | O57: 2"
A58: 1 | B58: 3 | C58: 1.5 | D58: 3 | E58: 2" | F58: 2" | G58: 2" | H58: 2" | I58: 2" | J58: 2" | K58: 2" | L58: 2" | M58: 2" | N58: 2" | O58: 2"
A59: 1 | B59: 3.5 | C59: 1.75 | D59: 3.5 | E59: 2" | F59: 2" | G59: 2" | H59: 2" | I59: 2" | J59: 2" | K59: 2" | L59: 2" | M59: 2" | N59: 2" | O59: 2"
A60: 1 | B60: 4 | C60: 2 | D60: 4 | E60: 2" | F60: 2" | G60: 2" | H60: 2" | I60: 2" | J60: 2" | K60: 2" | L60: 2" | M60: 2" | N60: 2" | O60: 2"
A61: 1 | B61: 4.5 | C61: 2.25 | D61: 4.5 | E61: 2" | F61: 2" | G61: 2" | H61: 2" | I61: 2" | J61: 2" | K61: 2" | L61: 2" | M61: 2" | N61: 2" | O61: 2"
A62: 1 | B62: 5 | C62: 2.5 | D62: 5 | E62: 2" | F62: 2" | G62: 2" | H62: 2" | I62: 2" | J62: 2" | K62: 2" | L62: 2" | M62: 2" | N62: 2" | O62: 2"
A63: 1 | B63: =B62+0.5 -> 5.5 | C63: 2.75 | D63: 5.5 | E63: 2" | F63: 2" | G63: 2" | H63: 2" | I63: 2" | J63: 2" | K63: 2" | L63: 2" | M63: 2" | N63: 2" | O63: 2"
A64: 1 | B64: 6 | C64: 3 | D64: 6 | E64: 2" | F64: 2" | G64: 2" | H64: 2" | I64: 2" | J64: 2" | K64: 2" | L64: 2" | M64: 2" | N64: 2.5" | O64: 2.5"
A65: 1 | B65: 6.5 | C65: 3.25 | D65: 6.5 | E65: 2" | F65: 2" | G65: 2" | H65: 2" | I65: 2" | J65: 2" | K65: 2" | L65: 2" | M65: 2" | N65: 2.5" | O65: 2.5"
A66: 1 | B66: 7 | C66: 3.5 | D66: 7 | E66: 2" | F66: 2" | G66: 2" | H66: 2" | I66: 2" | J66: 2" | K66: 2" | L66: 2.5" | M66: 2.5" | N66: 2.5" | O66: 2.5"
A67: 1 | B67: =B66+0.5 -> 7.5 | C67: 3.75 | D67: 7.5 | E67: 2" | F67: 2" | G67: 2" | H67: 2" | I67: 2" | J67: 2" | K67: 2.5" | L67: 2.5" | M67: 2.5" | N67: 2.5" | O67: 2.5"
A68: 1 | B68: 8 | C68: 4 | D68: 8 | E68: 2" | F68: 2" | G68: 2" | H68: 2" | I68: 2" | J68: 2.5" | K68: 2.5" | L68: 2.5" | M68: 2.5" | N68: 2.5" | O68: 2.5"
E70: 5
A71: width | B71: height | C71: centroid | D71: area | E71: 5 | F71: 6 | G71: 7 | H71: 8 | I71: 9 | J71: 10 | K71: 11 | L71: 12 | M71: 13 | N71: 14 | O71: 15
A72: 1.5 | B72: 1 | C72: =B72/2 -> 0.5 | D72: =A72*B72 -> 1.5 | E72: 2" | F72: 2" | G72: 2" | H72: 2" | I72: 2" | J72: 2" | K72: 2" | L72: 2" | M72: 2" | N72: 2" | O72: 2"
A73: 1.5 | B73: =B72+0.5 -> 1.5 | C73: =B73/2 -> 0.75 | D73: =A73*B73 -> 2.25 | E73: 2" | F73: 2" | G73: 2" | H73: 2" | I73: 2" | J73: 2" | K73: 2" | L73: 2" | M73: 2" | N73: 2" | O73: 2"
A74: 1.5 | B74: =B73+0.5 -> 2 | C74: 1 | D74: 3 | E74: 2" | F74: 2" | G74: 2" | H74: 2" | I74: 2" | J74: 2" | K74: 2" | L74: 2" | M74: 2" | N74: 2" | O74: 2"
A75: 1.5 | B75: 2.5 | C75: 1.25 | D75: 3.75 | E75: 2" | F75: 2" | G75: 2" | H75: 2" | I75: 2" | J75: 2" | K75: 2" | L75: 2" | M75: 2" | N75: 2" | O75: 2"
A76: 1.5 | B76: 3 | C76: 1.5 | D76: 4.5 | E76: 2" | F76: 2" | G76: 2" | H76: 2" | I76: 2" | J76: 2" | K76: 2" | L76: 2" | M76: 2" | N76: 2" | O76: 2"
A77: 1.5 | B77: 3.5 | C77: 1.75 | D77: 5.25 | E77: 2" | F77: 2" | G77: 2" | H77: 2" | I77: 2" | J77: 2" | K77: 2" | L77: 2" | M77: 2" | N77: 2" | O77: 2"
A78: 1.5 | B78: 4 | C78: 2 | D78: 6 | E78: 2" | F78: 2" | G78: 2" | H78: 2" | I78: 2" | J78: 2" | K78: 2" | L78: 2" | M78: 2" | N78: 2" | O78: 2.5"
A79: 1.5 | B79: 4.5 | C79: 2.25 | D79: 6.75 | E79: 2" | F79: 2" | G79: 2" | H79: 2" | I79: 2" | J79: 2" | K79: 2" | L79: 2" | M79: 2" | N79: 2.5" | O79: 2.5"
A80: 1.5 | B80: 5 | C80: 2.5 | D80: 7.5 | E80: 2" | F80: 2" | G80: 2" | H80: 2" | I80: 2" | J80: 2" | K80: 2" | L80: 2.5" | M80: 2.5" | N80: 2.5" | O80: 2.5"
A81: 1.5 | B81: 5.5 | C81: 2.75 | D81: 8.25 | E81: 2" | F81: 2" | G81: 2" | H81: 2" | I81: 2" | J81: 2" | K81: 2.5" | L81: 2.5" | M81: 2.5" | N81: 2.5" | O81: 2.5"
A82: 1.5 | B82: 6 | C82: 3 | D82: 9 | E82: 2" | F82: 2" | G82: 2" | H82: 2" | I82: 2.5" | J82: 2.5" | K82: 2.5" | L82: 2.5" | M82: 2.5" | N82: 2.5" | O82: 2.5" w/ 2.25" inside
A83: 1.5 | B83: 6.5 | C83: 3.25 | D83: 9.75 | E83: 2" | F83: 2" | G83: 2" | H83: 2.5" | I83: 2.5" | J83: 2.5" | K83: 2.5" | L83: 2.5" | M83: 2.5" | N83: 2.5" w/ 2.25" inside | O83: 2.5" w/ 2.25" inside
A84: 1.5 | B84: 7 | C84: 3.5 | D84: 10.5 | E84: 2" | F84: 2" | G84: 2.5" | H84: 2.5" | I84: 2.5" | J84: 2.5" | K84: 2.5" | L84: 2.5" | M84: 2.5" w/ 2.25" inside | N84: 2.5" w/ 2.25" inside | O84: 2.5" w/ 2.25" inside
A85: 1.5 | B85: 7.5 | C85: 3.75 | D85: 11.25 | E85: 2" | F85: 2.5" | G85: 2.5" | H85: 2.5" | I85: 2.5" | J85: 2.5" | K85: 2.5" | L85: 2.5" w/ 2.25" inside | M85: 2.5" w/ 2.25" inside | N85: 2.5" w/ 2.25" inside | O85: 2.5" w/ 2.25" inside
A86: 1.5 | B86: 8 | C86: 4 | D86: 12 | E86: 2.5" | F86: 2.5" | G86: 2.5" | H86: 2.5" | I86: 2.5" | J86: 2.5" | K86: 2.5" w/ 2.25" inside | L86: 2.5" w/ 2.25" inside | M86: 2.5" w/ 2.25" inside | N86: 2.5" w/ 2.25" inside | O86: 2.5" w/ 2.25" inside
E88: 5
A89: width | B89: height | C89: centroid | D89: area | E89: 5 | F89: 6 | G89: 7 | H89: 8 | I89: 9 | J89: 10 | K89: 11 | L89: 12 | M89: 13 | N89: 14 | O89: 15
A90: 2 | B90: 1 | C90: =B90/2 -> 0.5 | D90: =A90*B90 -> 2 | E90: 2" | F90: 2" | G90: 2" | H90: 2" | I90: 2" | J90: 2" | K90: 2" | L90: 2" | M90: 2" | N90: 2" | O90: 2"
A91: 2 | B91: =B90+0.5 -> 1.5 | C91: =B91/2 -> 0.75 | D91: =A91*B91 -> 3 | E91: 2" | F91: 2" | G91: 2" | H91: 2" | I91: 2" | J91: 2" | K91: 2" | L91: 2" | M91: 2" | N91: 2" | O91: 2"
A92: 2 | B92: =B91+0.5 -> 2 | C92: 1 | D92: 4 | E92: 2" | F92: 2" | G92: 2" | H92: 2" | I92: 2" | J92: 2" | K92: 2" | L92: 2" | M92: 2" | N92: 2" | O92: 2"
A93: 2 | B93: 2.5 | C93: 1.25 | D93: 5 | E93: 2" | F93: 2" | G93: 2" | H93: 2" | I93: 2" | J93: 2" | K93: 2" | L93: 2" | M93: 2" | N93: 2" | O93: 2"
A94: 2 | B94: 3 | C94: 1.5 | D94: 6 | E94: 2" | F94: 2" | G94: 2" | H94: 2" | I94: 2" | J94: 2" | K94: 2" | L94: 2" | M94: 2" | N94: 2" | O94: 2"
A95: 2 | B95: 3.5 | C95: 1.75 | D95: 7 | E95: 2" | F95: 2" | G95: 2" | H95: 2" | I95: 2" | J95: 2" | K95: 2" | L95: 2" | M95: 2" | N95: 2.5" | O95: 2.5"
A96: 2 | B96: 4 | C96: 2 | D96: 8 | E96: 2" | F96: 2" | G96: 2" | H96: 2" | I96: 2" | J96: 2" | K96: 2" | L96: 2.5" | M96: 2.5" | N96: 2.5" | O96: 2.5"
A97: 2 | B97: 4.5 | C97: 2.25 | D97: 9 | E97: 2" | F97: 2" | G97: 2" | H97: 2" | I97: 2" | J97: 2.5" | K97: 2.5" | L97: 2.5" | M97: 2.5" | N97: 2.5" | O97: 2.5"
A98: 2 | B98: 5 | C98: 2.5 | D98: 10 | E98: 2" | F98: 2" | G98: 2" | H98: 2" | I98: 2.5" | J98: 2.5" | K98: 2.5" | L98: 2.5" | M98: 2.5" | N98: 2.5" | O98: 2.5" w/ 2.25" inside
A99: 2 | B99: 5.5 | C99: 2.75 | D99: 11 | E99: 2" | F99: 2" | G99: 2.5" | H99: 2.5" | I99: 2.5" | J99: 2.5" | K99: 2.5" | L99: 2.5" | M99: 2.5" w/ 2.25" inside | N99: 2.5" w/ 2.25" inside | O99: 2.5" w/ 2.25" inside
A100: 2 | B100: 6 | C100: 3 | D100: 12 | E100: 2" | F100: 2.5" | G100: 2.5" | H100: 2.5" | I100: 2.5" | J100: 2.5" | K100: 2.5" | L100: 2.5" w/ 2.25" inside | M100: 2.5" w/ 2.25" inside | N100: 2.5" w/ 2.25" inside | O100: 2.5" w/ 2.25" inside
A101: 2 | B101: 6.5 | C101: 3.25 | D101: 13 | E101: 2.5" | F101: 2.5" | G101: 2.5" | H101: 2.5" | I101: 2.5" | J101: 2.5" w/ 2.25" inside | K101: 2.5" w/ 2.25" inside | L101: 2.5" w/ 2.25" inside | M101: 2.5" w/ 2.25" inside | N101: 2.5" w/ 2.25" inside | O101: 2.5" w/ 2.25" inside
A102: 2 | B102: 7 | C102: 3.5 | D102: 14 | E102: 2.5" | F102: 2.5" | G102: 2.5" | H102: 2.5" | I102: 2.5" w/ 2.25" inside | J102: 2.5" w/ 2.25" inside | K102: 2.5" w/ 2.25" inside | L102: 2.5" w/ 2.25" inside | M102: 2.5" w/ 2.25" inside | N102: 2.5" w/ 2.25" inside | O102: 2.5" w/ 2.25" inside
A103: 2 | B103: 7.5 | C103: 3.75 | D103: 15 | E103: 2.5" | F103: 2.5" | G103: 2.5" | H103: 2.5" w/ 2.25" inside | I103: 2.5" w/ 2.25" inside | J103: 2.5" w/ 2.25" inside | K103: 2.5" w/ 2.25" inside | L103: 2.5" w/ 2.25" inside | M103: 2.5" w/ 2.25" inside | N103: 2.5" w/ 2.25" inside | O103: 2.5" w/ 2.25" inside
A104: 2 | B104: 8 | C104: 4 | D104: 16 | E104: 2.5" | F104: 2.5" | G104: 2.5" w/ 2.25" inside | H104: 2.5" w/ 2.25" inside | I104: 2.5" w/ 2.25" inside | J104: 2.5" w/ 2.25" inside | K104: 2.5" w/ 2.25" inside | L104: 2.5" w/ 2.25" inside | M104: 2.5" w/ 2.25" inside | N104: Sign too big. Use different post. | O104: Sign too big. Use different post.
E106: 5
A107: width | B107: height | C107: centroid | D107: area | E107: 5 | F107: 6 | G107: 7 | H107: 8 | I107: 9 | J107: 10 | K107: 11 | L107: 12 | M107: 13 | N107: 14 | O107: 15
A108: 2.5 | B108: 1 | C108: =B108/2 -> 0.5 | D108: =A108*B108 -> 2.5 | E108: 2" | F108: 2" | G108: 2" | H108: 2" | I108: 2" | J108: 2" | K108: 2" | L108: 2" | M108: 2" | N108: 2" | O108: 2"
A109: 2.5 | B109: =B108+0.5 -> 1.5 | C109: =B109/2 -> 0.75 | D109: =A109*B109 -> 3.75 | E109: 2" | F109: 2" | G109: 2" | H109: 2" | I109: 2" | J109: 2" | K109: 2" | L109: 2" | M109: 2" | N109: 2" | O109: 2"
A110: 2.5 | B110: =B109+0.5 -> 2 | C110: 1 | D110: 5 | E110: 2" | F110: 2" | G110: 2" | H110: 2" | I110: 2" | J110: 2" | K110: 2" | L110: 2" | M110: 2" | N110: 2" | O110: 2"
A111: 2.5 | B111: 2.5 | C111: 1.25 | D111: 6.25 | E111: 2" | F111: 2" | G111: 2" | H111: 2" | I111: 2" | J111: 2" | K111: 2" | L111: 2" | M111: 2" | N111: 2" | O111: 2"
A112: 2.5 | B112: 3 | C112: 1.5 | D112: 7.5 | E112: 2" | F112: 2" | G112: 2" | H112: 2" | I112: 2" | J112: 2" | K112: 2" | L112: 2" | M112: 2.5" | N112: 2.5" | O112: 2.5"
A113: 2.5 | B113: 3.5 | C113: 1.75 | D113: 8.75 | E113: 2" | F113: 2" | G113: 2" | H113: 2" | I113: 2" | J113: 2" | K113: 2.5" | L113: 2.5" | M113: 2.5" | N113: 2.5" | O113: 2.5"
A114: 2.5 | B114: 4 | C114: 2 | D114: 10 | E114: 2" | F114: 2" | G114: 2" | H114: 2" | I114: 2.5" | J114: 2.5" | K114: 2.5" | L114: 2.5" | M114: 2.5" | N114: 2.5" | O114: 2.5"
A115: 2.5 | B115: 4.5 | C115: 2.25 | D115: 11.25 | E115: 2" | F115: 2" | G115: 2" | H115: 2.5" | I115: 2.5" | J115: 2.5" | K115: 2.5" | L115: 2.5" | M115: 2.5" w/ 2.25" inside | N115: 2.5" w/ 2.25" inside | O115: 2.5" w/ 2.25" inside
A116: 2.5 | B116: 5 | C116: 2.5 | D116: 12.5 | E116: 2" | F116: 2" | G116: 2.5" | H116: 2.5" | I116: 2.5" | J116: 2.5" | K116: 2.5" | L116: 2.5" w/ 2.25" inside | M116: 2.5" w/ 2.25" inside | N116: 2.5" w/ 2.25" inside | O116: 2.5" w/ 2.25" inside
A117: 2.5 | B117: 5.5 | C117: 2.75 | D117: 13.75 | E117: 2" | F117: 2.5" | G117: 2.5" | H117: 2.5" | I117: 2.5" | J117: 2.5" w/ 2.25" inside | K117: 2.5" w/ 2.25" inside | L117: 2.5" w/ 2.25" inside | M117: 2.5" w/ 2.25" inside | N117: 2.5" w/ 2.25" inside | O117: 2.5" w/ 2.25" inside
A118: 2.5 | B118: 6 | C118: 3 | D118: 15 | E118: 2.5" | F118: 2.5" | G118: 2.5" | H118: 2.5" | I118: 2.5" w/ 2.25" inside | J118: 2.5" w/ 2.25" inside | K118: 2.5" w/ 2.25" inside | L118: 2.5" w/ 2.25" inside | M118: 2.5" w/ 2.25" inside | N118: 2.5" w/ 2.25" inside | O118: 2.5" w/ 2.25" inside
A119: 2.5 | B119: 6.5 | C119: 3.25 | D119: 16.25 | E119: 2.5" | F119: 2.5" | G119: 2.5" | H119: 2.5" w/ 2.25" inside | I119: 2.5" w/ 2.25" inside | J119: 2.5" w/ 2.25" inside | K119: 2.5" w/ 2.25" inside | L119: 2.5" w/ 2.25" inside | M119: 2.5" w/ 2.25" inside | N119: 2.5" w/ 2.25" inside | O119: Sign too big. Use different post.
A120: 2.5 | B120: 7 | C120: 3.5 | D120: 17.5 | E120: 2.5" | F120: 2.5" | G120: 2.5" w/ 2.25" inside | H120: 2.5" w/ 2.25" inside | I120: 2.5" w/ 2.25" inside | J120: 2.5" w/ 2.25" inside | K120: 2.5" w/ 2.25" inside | L120: 2.5" w/ 2.25" inside | M120: 2.5" w/ 2.25" inside | N120: Sign too big. Use different post. | O120: Sign too big. Use different post.
A121: 2.5 | B121: 7.5 | C121: 3.75 | D121: 18.75 | E121: 2.5" | F121: 2.5" w/ 2.25" inside | G121: 2.5" w/ 2.25" inside | H121: 2.5" w/ 2.25" inside | I121: 2.5" w/ 2.25" inside | J121: 2.5" w/ 2.25" inside | K121: 2.5" w/ 2.25" inside | L121: 2.5" w/ 2.25" inside | M121: Sign too big. Use different post. | N121: Sign too big. Use different post. | O121: Sign too big. Use different post.
A122: 2.5 | B122: 8 | C122: 4 | D122: 20 | E122: 2.5" w/ 2.25" inside | F122: 2.5" w/ 2.25" inside | G122: 2.5" w/ 2.25" inside | H122: 2.5" w/ 2.25" inside | I122: 2.5" w/ 2.25" inside | J122: 2.5" w/ 2.25" inside | K122: 2.5" w/ 2.25" inside | L122: Sign too big. Use different post. | M122: Sign too big. Use different post. | N122: Sign too big. Use different post. | O122: Sign too big. Use different post.
E124: 5
A125: width | B125: height | C125: centroid | D125: area | E125: 5 | F125: 6 | G125: 7 | H125: 8 | I125: 9 | J125: 10 | K125: 11 | L125: 12 | M125: 13 | N125: 14 | O125: 15
A126: 3 | B126: 1 | C126: =B126/2 -> 0.5 | D126: =A126*B126 -> 3 | E126: 2" | F126: 2" | G126: 2" | H126: 2" | I126: 2" | J126: 2" | K126: 2" | L126: 2" | M126: 2" | N126: 2" | O126: 2"
A127: 3 | B127: =B126+0.5 -> 1.5 | C127: =B127/2 -> 0.75 | D127: =A127*B127 -> 4.5 | E127: 2" | F127: 2" | G127: 2" | H127: 2" | I127: 2" | J127: 2" | K127: 2" | L127: 2" | M127: 2" | N127: 2" | O127: 2"
A128: 3 | B128: =B127+0.5 -> 2 | C128: 1 | D128: 6 | E128: 2" | F128: 2" | G128: 2" | H128: 2" | I128: 2" | J128: 2" | K128: 2" | L128: 2" | M128: 2" | N128: 2" | O128: 2"
A129: 3 | B129: 2.5 | C129: 1.25 | D129: 7.5 | E129: 2" | F129: 2" | G129: 2" | H129: 2" | I129: 2" | J129: 2" | K129: 2" | L129: 2" | M129: 2" | N129: 2.5" | O129: 2.5"
A130: 3 | B130: 3 | C130: 1.5 | D130: 9 | E130: 2" | F130: 2" | G130: 2" | H130: 2" | I130: 2" | J130: 2" | K130: 2.5" | L130: 2.5" | M130: 2.5" | N130: 2.5" | O130: 2.5"
A131: 3 | B131: 3.5 | C131: 1.75 | D131: 10.5 | E131: 2" | F131: 2" | G131: 2" | H131: 2" | I131: 2.5" | J131: 2.5" | K131: 2.5" | L131: 2.5" | M131: 2.5" | N131: 2.5" | O131: 2.5" w/ 2.25" inside
A132: 3 | B132: 4 | C132: 2 | D132: 12 | E132: 2" | F132: 2" | G132: 2.5" | H132: 2.5" | I132: 2.5" | J132: 2.5" | K132: 2.5" | L132: 2.5" | M132: 2.5" w/ 2.25" inside | N132: 2.5" w/ 2.25" inside | O132: 2.5" w/ 2.25" inside
A133: 3 | B133: 4.5 | C133: 2.25 | D133: 13.5 | E133: 2" | F133: 2.5" | G133: 2.5" | H133: 2.5" | I133: 2.5" | J133: 2.5" | K133: 2.5" w/ 2.25" inside | L133: 2.5" w/ 2.25" inside | M133: 2.5" w/ 2.25" inside | N133: 2.5" w/ 2.25" inside | O133: 2.5" w/ 2.25" inside
A134: 3 | B134: 5 | C134: 2.5 | D134: 15 | E134: 2.5" | F134: 2.5" | G134: 2.5" | H134: 2.5" | I134: 2.5" w/ 2.25" inside | J134: 2.5" w/ 2.25" inside | K134: 2.5" w/ 2.25" inside | L134: 2.5" w/ 2.25" inside | M134: 2.5" w/ 2.25" inside | N134: 2.5" w/ 2.25" inside | O134: 2.5" w/ 2.25" inside
A135: 3 | B135: 5.5 | C135: 2.75 | D135: 16.5 | E135: 2.5" | F135: 2.5" | G135: 2.5" | H135: 2.5" w/ 2.25" inside | I135: 2.5" w/ 2.25" inside | J135: 2.5" w/ 2.25" inside | K135: 2.5" w/ 2.25" inside | L135: 2.5" w/ 2.25" inside | M135: 2.5" w/ 2.25" inside | N135: 2.5" w/ 2.25" inside | O135: Sign too big. Use different post.
A136: 3 | B136: 6 | C136: 3 | D136: 18 | E136: 2.5" | F136: 2.5" | G136: 2.5" w/ 2.25" inside | H136: 2.5" w/ 2.25" inside | I136: 2.5" w/ 2.25" inside | J136: 2.5" w/ 2.25" inside | K136: 2.5" w/ 2.25" inside | L136: 2.5" w/ 2.25" inside | M136: 2.5" w/ 2.25" inside | N136: Sign too big. Use different post. | O136: Sign too big. Use different post.
A137: 3 | B137: 6.5 | C137: 3.25 | D137: 19.5 | E137: 2.5" | F137: 2.5" w/ 2.25" inside | G137: 2.5" w/ 2.25" inside | H137: 2.5" w/ 2.25" inside | I137: 2.5" w/ 2.25" inside | J137: 2.5" w/ 2.25" inside | K137: 2.5" w/ 2.25" inside | L137: 2.5" w/ 2.25" inside | M137: Sign too big. Use different post. | N137: Sign too big. Use different post. | O137: Sign too big. Use different post.
A138: 3 | B138: 7 | C138: 3.5 | D138: 21 | E138: 2.5" w/ 2.25" inside | F138: 2.5" w/ 2.25" inside | G138: 2.5" w/ 2.25" inside | H138: 2.5" w/ 2.25" inside | I138: 2.5" w/ 2.25" inside | J138: 2.5" w/ 2.25" inside | K138: 2.5" w/ 2.25" inside | L138: Sign too big. Use different post. | M138: Sign too big. Use different post. | N138: Sign too big. Use different post. | O138: Sign too big. Use different post.
A139: 3 | B139: 7.5 | C139: 3.75 | D139: 22.5 | E139: 2.5" w/ 2.25" inside | F139: 2.5" w/ 2.25" inside | G139: 2.5" w/ 2.25" inside | H139: 2.5" w/ 2.25" inside | I139: 2.5" w/ 2.25" inside | J139: Sign too big. Use different post. | K139: Sign too big. Use different post. | L139: Sign too big. Use different post. | M139: Sign too big. Use different post. | N139: Sign too big. Use different post. | O139: Sign too big. Use different post.
A140: 3 | B140: 8 | C140: 4 | D140: 24 | E140: 2.5" w/ 2.25" inside | F140: 2.5" w/ 2.25" inside | G140: 2.5" w/ 2.25" inside | H140: 2.5" w/ 2.25" inside | I140: Sign too big. Use different post. | J140: Sign too big. Use different post. | K140: Sign too big. Use different post. | L140: Sign too big. Use different post. | M140: Sign too big. Use different post. | N140: Sign too big. Use different post. | O140: Sign too big. Use different post.
E142: 5
A143: width | B143: height | C143: centroid | D143: area | E143: 5 | F143: 6 | G143: 7 | H143: 8 | I143: 9 | J143: 10 | K143: 11 | L143: 12 | M143: 13 | N143: 14 | O143: 15
A144: 3.5 | B144: 1 | C144: =B144/2 -> 0.5 | D144: =A144*B144 -> 3.5 | E144: 2" | F144: 2" | G144: 2" | H144: 2" | I144: 2" | J144: 2" | K144: 2" | L144: 2" | M144: 2" | N144: 2" | O144: 2"
A145: 3.5 | B145: =B144+0.5 -> 1.5 | C145: =B145/2 -> 0.75 | D145: =A145*B145 -> 5.25 | E145: 2" | F145: 2" | G145: 2" | H145: 2" | I145: 2" | J145: 2" | K145: 2" | L145: 2" | M145: 2" | N145: 2" | O145: 2"
A146: 3.5 | B146: =B145+0.5 -> 2 | C146: 1 | D146: 7 | E146: 2" | F146: 2" | G146: 2" | H146: 2" | I146: 2" | J146: 2" | K146: 2" | L146: 2" | M146: 2" | N146: 2" | O146: 2.5"
A147: 3.5 | B147: 2.5 | C147: 1.25 | D147: 8.75 | E147: 2" | F147: 2" | G147: 2" | H147: 2" | I147: 2" | J147: 2" | K147: 2" | L147: 2.5" | M147: 2.5" | N147: 2.5" | O147: 2.5"
A148: 3.5 | B148: 3 | C148: 1.5 | D148: 10.5 | E148: 2" | F148: 2" | G148: 2" | H148: 2" | I148: 2.5" | J148: 2.5" | K148: 2.5" | L148: 2.5" | M148: 2.5" | N148: 2.5" | O148: 2.5" w/ 2.25" inside
A149: 3.5 | B149: 3.5 | C149: 1.75 | D149: 12.25 | E149: 2" | F149: 2" | G149: 2" | H149: 2.5" | I149: 2.5" | J149: 2.5" | K149: 2.5" | L149: 2.5" | M149: 2.5" w/ 2.25" inside | N149: 2.5" w/ 2.25" inside | O149: 2.5" w/ 2.25" inside
A150: 3.5 | B150: 4 | C150: 2 | D150: 14 | E150: 2" | F150: 2.5" | G150: 2.5" | H150: 2.5" | I150: 2.5" | J150: 2.5" | K150: 2.5" w/ 2.25" inside | L150: 2.5" w/ 2.25" inside | M150: 2.5" w/ 2.25" inside | N150: 2.5" w/ 2.25" inside | O150: 2.5" w/ 2.25" inside
A151: 3.5 | B151: 4.5 | C151: 2.25 | D151: 15.75 | E151: 2.5" | F151: 2.5" | G151: 2.5" | H151: 2.5" | I151: 2.5" w/ 2.25" inside | J151: 2.5" w/ 2.25" inside | K151: 2.5" w/ 2.25" inside | L151: 2.5" w/ 2.25" inside | M151: 2.5" w/ 2.25" inside | N151: 2.5" w/ 2.25" inside | O151: 2.5" w/ 2.25" inside
A152: 3.5 | B152: 5 | C152: 2.5 | D152: 17.5 | E152: 2.5" | F152: 2.5" | G152: 2.5" | H152: 2.5" w/ 2.25" inside | I152: 2.5" w/ 2.25" inside | J152: 2.5" w/ 2.25" inside | K152: 2.5" w/ 2.25" inside | L152: 2.5" w/ 2.25" inside | M152: 2.5" w/ 2.25" inside | N152: 2.5" w/ 2.25" inside | O152: Sign too big. Use different post.
A153: 3.5 | B153: 5.5 | C153: 2.75 | D153: 19.25 | E153: 2.5" | F153: 2.5" w/ 2.25" inside | G153: 2.5" w/ 2.25" inside | H153: 2.5" w/ 2.25" inside | I153: 2.5" w/ 2.25" inside | J153: 2.5" w/ 2.25" inside | K153: 2.5" w/ 2.25" inside | L153: 2.5" w/ 2.25" inside | M153: 2.5" w/ 2.25" inside | N153: Sign too big. Use different post. | O153: Sign too big. Use different post.
A154: 3.5 | B154: 6 | C154: 3 | D154: 21 | E154: 2.5" | F154: 2.5" w/ 2.25" inside | G154: 2.5" w/ 2.25" inside | H154: 2.5" w/ 2.25" inside | I154: 2.5" w/ 2.25" inside | J154: 2.5" w/ 2.25" inside | K154: 2.5" w/ 2.25" inside | L154: Sign too big. Use different post. | M154: Sign too big. Use different post. | N154: Sign too big. Use different post. | O154: Sign too big. Use different post.
A155: 3.5 | B155: 6.5 | C155: 3.25 | D155: 22.75 | E155: 2.5" w/ 2.25" inside | F155: 2.5" w/ 2.25" inside | G155: 2.5" w/ 2.25" inside | H155: 2.5" w/ 2.25" inside | I155: 2.5" w/ 2.25" inside | J155: 2.5" w/ 2.25" inside | K155: Sign too big. Use different post. | L155: Sign too big. Use different post. | M155: Sign too big. Use different post. | N155: Sign too big. Use different post. | O155: Sign too big. Use different post.
A156: 3.5 | B156: 7 | C156: 3.5 | D156: 24.5 | E156: 2.5" w/ 2.25" inside | F156: 2.5" w/ 2.25" inside | G156: 2.5" w/ 2.25" inside | H156: 2.5" w/ 2.25" inside | I156: 2.5" w/ 2.25" inside | J156: Sign too big. Use different post. | K156: Sign too big. Use different post. | L156: Sign too big. Use different post. | M156: Sign too big. Use different post. | N156: Sign too big. Use different post. | O156: Sign too big. Use different post.
A157: 3.5 | B157: 7.5 | C157: 3.75 | D157: 26.25 | E157: 2.5" w/ 2.25" inside | F157: 2.5" w/ 2.25" inside | G157: 2.5" w/ 2.25" inside | H157: Sign too big. Use different post. | I157: Sign too big. Use different post. | J157: Sign too big. Use different post. | K157: Sign too big. Use different post. | L157: Sign too big. Use different post. | M157: Sign too big. Use different post. | N157: Sign too big. Use different post. | O157: Sign too big. Use different post.
A158: 3.5 | B158: 8 | C158: 4 | D158: 28 | E158: 2.5" w/ 2.25" inside | F158: 2.5" w/ 2.25" inside | G158: 2.5" w/ 2.25" inside | H158: Sign too big. Use different post. | I158: Sign too big. Use different post. | J158: Sign too big. Use different post. | K158: Sign too big. Use different post. | L158: Sign too big. Use different post. | M158: Sign too big. Use different post. | N158: Sign too big. Use different post. | O158: Sign too big. Use different post.
A160: SINGLE POST - 7' MOUNTING HEIGHT
E162: 7
A163: width | B163: height | C163: centroid | D163: area | E163: 7 | F163: 8 | G163: 9 | H163: 10 | I163: 11 | J163: 12 | K163: 13 | L163: 14 | M163: 15
A164: 1 | B164: 1 | C164: =B164/2 -> 0.5 | D164: =A164*B164 -> 1 | E164: 2" | F164: 2" | G164: 2" | H164: 2" | I164: 2" | J164: 2" | K164: 2" | L164: 2" | M164: 2"
A165: 1 | B165: =B164+0.5 -> 1.5 | C165: =B165/2 -> 0.75 | D165: =A165*B165 -> 1.5 | E165: 2" | F165: 2" | G165: 2" | H165: 2" | I165: 2" | J165: 2" | K165: 2" | L165: 2" | M165: 2"
A166: 1 | B166: =B165+0.5 -> 2 | C166: 1 | D166: 2 | E166: 2" | F166: 2" | G166: 2" | H166: 2" | I166: 2" | J166: 2" | K166: 2" | L166: 2" | M166: 2"
A167: 1 | B167: 2.5 | C167: 1.25 | D167: 2.5 | E167: 2" | F167: 2" | G167: 2" | H167: 2" | I167: 2" | J167: 2" | K167: 2" | L167: 2" | M167: 2"
A168: 1 | B168: 3 | C168: 1.5 | D168: 3 | E168: 2" | F168: 2" | G168: 2" | H168: 2" | I168: 2" | J168: 2" | K168: 2" | L168: 2" | M168: 2"
A169: 1 | B169: 3.5 | C169: 1.75 | D169: 3.5 | E169: 2" | F169: 2" | G169: 2" | H169: 2" | I169: 2" | J169: 2" | K169: 2" | L169: 2" | M169: Sign too big. Use different post.
A170: 1 | B170: 4 | C170: 2 | D170: 4 | E170: 2" | F170: 2" | G170: 2" | H170: 2" | I170: 2" | J170: 2" | K170: 2" | L170: 2" | M170: Sign too big. Use different post.
A171: 1 | B171: 4.5 | C171: 2.25 | D171: 4.5 | E171: 2" | F171: 2" | G171: 2" | H171: 2" | I171: 2" | J171: 2" | K171: 2" | L171: 2" | M171: Sign too big. Use different post.
A172: 1 | B172: 5 | C172: 2.5 | D172: 5 | E172: 2" | F172: 2" | G172: 2" | H172: 2" | I172: 2" | J172: 2" | K172: 2" | L172: 2" | M172: Sign too big. Use different post.
A173: 1 | B173: =B172+0.5 -> 5.5 | C173: 2.75 | D173: 5.5 | E173: 2" | F173: 2" | G173: 2" | H173: 2" | I173: 2" | J173: 2" | K173: 2" | L173: Sign too big. Use different post. | M173: Sign too big. Use different post.
A174: 1 | B174: 6 | C174: 3 | D174: 6 | E174: 2" | F174: 2" | G174: 2" | H174: 2" | I174: 2" | J174: 2" | K174: 2" | L174: Sign too big. Use different post. | M174: Sign too big. Use different post.
A175: 1 | B175: 6.5 | C175: 3.25 | D175: 6.5 | E175: 2" | F175: 2" | G175: 2" | H175: 2" | I175: 2" | J175: 2" | K175: 2.5" | L175: Sign too big. Use different post. | M175: Sign too big. Use different post.
A176: 1 | B176: 7 | C176: 3.5 | D176: 7 | E176: 2" | F176: 2" | G176: 2" | H176: 2" | I176: 2" | J176: 2.5" | K176: 2.5" | L176: Sign too big. Use different post. | M176: Sign too big. Use different post.
A177: 1 | B177: =B176+0.5 -> 7.5 | C177: 3.75 | D177: 7.5 | E177: 2" | F177: 2" | G177: 2" | H177: 2" | I177: 2.5" | J177: 2.5" | K177: Sign too big. Use different post. | L177: Sign too big. Use different post. | M177: Sign too big. Use different post.
A178: 1 | B178: 8 | C178: 4 | D178: 8 | E178: 2" | F178: 2" | G178: 2" | H178: 2.5" | I178: 2.5" | J178: 2.5" | K178: Sign too big. Use different post. | L178: Sign too big. Use different post. | M178: Sign too big. Use different post.
E180: 7
A181: width | B181: height | C181: centroid | D181: area | E181: 7 | F181: 8 | G181: 9 | H181: 10 | I181: 11 | J181: 12 | K181: 13 | L181: 14 | M181: 15
A182: 1.5 | B182: 1 | C182: =B182/2 -> 0.5 | D182: =A182*B182 -> 1.5 | E182: 2" | F182: 2" | G182: 2" | H182: 2" | I182: 2" | J182: 2" | K182: 2" | L182: 2" | M182: 2"
A183: 1.5 | B183: =B182+0.5 -> 1.5 | C183: =B183/2 -> 0.75 | D183: =A183*B183 -> 2.25 | E183: 2" | F183: 2" | G183: 2" | H183: 2" | I183: 2" | J183: 2" | K183: 2" | L183: 2" | M183: 2"
A184: 1.5 | B184: =B183+0.5 -> 2 | C184: 1 | D184: 3 | E184: 2" | F184: 2" | G184: 2" | H184: 2" | I184: 2" | J184: 2" | K184: 2" | L184: 2" | M184: 2"
A185: 1.5 | B185: 2.5 | C185: 1.25 | D185: 3.75 | E185: 2" | F185: 2" | G185: 2" | H185: 2" | I185: 2" | J185: 2" | K185: 2" | L185: 2" | M185: 2"
A186: 1.5 | B186: 3 | C186: 1.5 | D186: 4.5 | E186: 2" | F186: 2" | G186: 2" | H186: 2" | I186: 2" | J186: 2" | K186: 2" | L186: 2" | M186: 2"
A187: 1.5 | B187: 3.5 | C187: 1.75 | D187: 5.25 | E187: 2" | F187: 2" | G187: 2" | H187: 2" | I187: 2" | J187: 2" | K187: 2" | L187: 2" | M187: Sign too big. Use different post.
A188: 1.5 | B188: 4 | C188: 2 | D188: 6 | E188: 2" | F188: 2" | G188: 2" | H188: 2" | I188: 2" | J188: 2" | K188: 2" | L188: 2" | M188: Sign too big. Use different post.
A189: 1.5 | B189: 4.5 | C189: 2.25 | D189: 6.75 | E189: 2" | F189: 2" | G189: 2" | H189: 2" | I189: 2" | J189: 2" | K189: 2" | L189: 2.5" | M189: Sign too big. Use different post.
A190: 1.5 | B190: 5 | C190: 2.5 | D190: 7.5 | E190: 2" | F190: 2" | G190: 2" | H190: 2" | I190: 2" | J190: 2.5" | K190: 2.5" | L190: 2.5" | M190: Sign too big. Use different post.
A191: 1.5 | B191: 5.5 | C191: 2.75 | D191: 8.25 | E191: 2" | F191: 2" | G191: 2" | H191: 2.5" | I191: 2.5" | J191: 2.5" | K191: 2.5" | L191: Sign too big. Use different post. | M191: Sign too big. Use different post.
A192: 1.5 | B192: 6 | C192: 3 | D192: 9 | E192: 2" | F192: 2" | G192: 2.5" | H192: 2.5" | I192: 2.5" | J192: 2.5" | K192: 2.5" | L192: Sign too big. Use different post. | M192: Sign too big. Use different post.
A193: 1.5 | B193: 6.5 | C193: 3.25 | D193: 9.75 | E193: 2" | F193: 2.5" | G193: 2.5" | H193: 2.5" | I193: 2.5" | J193: 2.5" | K193: 2.5" | L193: Sign too big. Use different post. | M193: Sign too big. Use different post.
A194: 1.5 | B194: 7 | C194: 3.5 | D194: 10.5 | E194: 2.5" | F194: 2.5" | G194: 2.5" | H194: 2.5" | I194: 2.5" | J194: 2.5" | K194: 2.5" w/ 2.25" inside | L194: Sign too big. Use different post. | M194: Sign too big. Use different post.
A195: 1.5 | B195: 7.5 | C195: 3.75 | D195: 11.25 | E195: 2.5" | F195: 2.5" | G195: 2.5" | H195: 2.5" | I195: 2.5" | J195: 2.5" w/ 2.25" inside | K195: Sign too big. Use different post. | L195: Sign too big. Use different post. | M195: Sign too big. Use different post.
A196: 1.5 | B196: 8 | C196: 4 | D196: 12 | E196: 2.5" | F196: 2.5" | G196: 2.5" | H196: 2.5" | I196: 2.5" w/ 2.25" inside | J196: 2.5" w/ 2.25" inside | K196: Sign too big. Use different post. | L196: Sign too big. Use different post. | M196: Sign too big. Use different post.
E198: 7
A199: width | B199: height | C199: centroid | D199: area | E199: 7 | F199: 8 | G199: 9 | H199: 10 | I199: 11 | J199: 12 | K199: 13 | L199: 14 | M199: 15
A200: 2 | B200: 1 | C200: =B200/2 -> 0.5 | D200: =A200*B200 -> 2 | E200: 2" | F200: 2" | G200: 2" | H200: 2" | I200: 2" | J200: 2" | K200: 2" | L200: 2" | M200: 2"
A201: 2 | B201: =B200+0.5 -> 1.5 | C201: =B201/2 -> 0.75 | D201: =A201*B201 -> 3 | E201: 2" | F201: 2" | G201: 2" | H201: 2" | I201: 2" | J201: 2" | K201: 2" | L201: 2" | M201: 2"
A202: 2 | B202: =B201+0.5 -> 2 | C202: 1 | D202: 4 | E202: 2" | F202: 2" | G202: 2" | H202: 2" | I202: 2" | J202: 2" | K202: 2" | L202: 2" | M202: 2"
A203: 2 | B203: 2.5 | C203: 1.25 | D203: 5 | E203: 2" | F203: 2" | G203: 2" | H203: 2" | I203: 2" | J203: 2" | K203: 2" | L203: 2" | M203: 2"
A204: 2 | B204: 3 | C204: 1.5 | D204: 6 | E204: 2" | F204: 2" | G204: 2" | H204: 2" | I204: 2" | J204: 2" | K204: 2" | L204: 2" | M204: 2"
A205: 2 | B205: 3.5 | C205: 1.75 | D205: 7 | E205: 2" | F205: 2" | G205: 2" | H205: 2" | I205: 2" | J205: 2" | K205: 2" | L205: 2.5" | M205: Sign too big. Use different post.
A206: 2 | B206: 4 | C206: 2 | D206: 8 | E206: 2" | F206: 2" | G206: 2" | H206: 2" | I206: 2" | J206: 2.5" | K206: 2.5" | L206: 2.5" | M206: Sign too big. Use different post.
A207: 2 | B207: 4.5 | C207: 2.25 | D207: 9 | E207: 2" | F207: 2" | G207: 2" | H207: 2.5" | I207: 2.5" | J207: 2.5" | K207: 2.5" | L207: 2.5" | M207: Sign too big. Use different post.
A208: 2 | B208: 5 | C208: 2.5 | D208: 10 | E208: 2" | F208: 2" | G208: 2.5" | H208: 2.5" | I208: 2.5" | J208: 2.5" | K208: 2.5" | L208: 2.5" | M208: Sign too big. Use different post.
A209: 2 | B209: 5.5 | C209: 2.75 | D209: 11 | E209: 2.5" | F209: 2.5" | G209: 2.5" | H209: 2.5" | I209: 2.5" | J209: 2.5" | K209: 2.5" w/ 2.25" inside | L209: Sign too big. Use different post. | M209: Sign too big. Use different post.
A210: 2 | B210: 6 | C210: 3 | D210: 12 | E210: 2.5" | F210: 2.5" | G210: 2.5" | H210: 2.5" | I210: 2.5" | J210: 2.5" w/ 2.25" inside | K210: 2.5" w/ 2.25" inside | L210: Sign too big. Use different post. | M210: Sign too big. Use different post.
A211: 2 | B211: 6.5 | C211: 3.25 | D211: 13 | E211: 2.5" | F211: 2.5" | G211: 2.5" | H211: 2.5" w/ 2.25" inside | I211: 2.5" w/ 2.25" inside | J211: 2.5" w/ 2.25" inside | K211: 2.5" w/ 2.25" inside | L211: Sign too big. Use different post. | M211: Sign too big. Use different post.
A212: 2 | B212: 7 | C212: 3.5 | D212: 14 | E212: 2.5" | F212: 2.5" | G212: 2.5" w/ 2.25" inside | H212: 2.5" w/ 2.25" inside | I212: 2.5" w/ 2.25" inside | J212: 2.5" w/ 2.25" inside | K212: 2.5" w/ 2.25" inside | L212: Sign too big. Use different post. | M212: Sign too big. Use different post.
A213: 2 | B213: 7.5 | C213: 3.75 | D213: 15 | E213: 2.5" | F213: 2.5" w/ 2.25" inside | G213: 2.5" w/ 2.25" inside | H213: 2.5" w/ 2.25" inside | I213: 2.5" w/ 2.25" inside | J213: 2.5" w/ 2.25" inside | K213: Sign too big. Use different post. | L213: Sign too big. Use different post. | M213: Sign too big. Use different post.
A214: 2 | B214: 8 | C214: 4 | D214: 16 | E214: 2.5" w/ 2.25" inside | F214: 2.5" w/ 2.25" inside | G214: 2.5" w/ 2.25" inside | H214: 2.5" w/ 2.25" inside | I214: 2.5" w/ 2.25" inside | J214: 2.5" w/ 2.25" inside | K214: Sign too big. Use different post. | L214: Sign too big. Use different post. | M214: Sign too big. Use different post.
E216: 7
A217: width | B217: height | C217: centroid | D217: area | E217: 7 | F217: 8 | G217: 9 | H217: 10 | I217: 11 | J217: 12 | K217: 13 | L217: 14 | M217: 15
A218: 2.5 | B218: 1 | C218: =B218/2 -> 0.5 | D218: =A218*B218 -> 2.5 | E218: 2" | F218: 2" | G218: 2" | H218: 2" | I218: 2" | J218: 2" | K218: 2" | L218: 2" | M218: 2"
A219: 2.5 | B219: =B218+0.5 -> 1.5 | C219: =B219/2 -> 0.75 | D219: =A219*B219 -> 3.75 | E219: 2" | F219: 2" | G219: 2" | H219: 2" | I219: 2" | J219: 2" | K219: 2" | L219: 2" | M219: 2"
A220: 2.5 | B220: =B219+0.5 -> 2 | C220: 1 | D220: 5 | E220: 2" | F220: 2" | G220: 2" | H220: 2" | I220: 2" | J220: 2" | K220: 2" | L220: 2" | M220: 2"
A221: 2.5 | B221: 2.5 | C221: 1.25 | D221: 6.25 | E221: 2" | F221: 2" | G221: 2" | H221: 2" | I221: 2" | J221: 2" | K221: 2" | L221: 2" | M221: 2"
A222: 2.5 | B222: 3 | C222: 1.5 | D222: 7.5 | E222: 2" | F222: 2" | G222: 2" | H222: 2" | I222: 2" | J222: 2" | K222: 2.5" | L222: 2.5" | M222: 2.5"
A223: 2.5 | B223: 3.5 | C223: 1.75 | D223: 8.75 | E223: 2" | F223: 2" | G223: 2" | H223: 2" | I223: 2.5" | J223: 2.5" | K223: 2.5" | L223: 2.5" | M223: Sign too big. Use different post.
A224: 2.5 | B224: 4 | C224: 2 | D224: 10 | E224: 2" | F224: 2" | G224: 2.5" | H224: 2.5" | I224: 2.5" | J224: 2.5" | K224: 2.5" | L224: 2.5" | M224: Sign too big. Use different post.
A225: 2.5 | B225: 4.5 | C225: 2.25 | D225: 11.25 | E225: 2" | F225: 2.5" | G225: 2.5" | H225: 2.5" | I225: 2.5" | J225: 2.5" | K225: 2.5" w/ 2.25" inside | L225: 2.5" w/ 2.25" inside | M225: Sign too big. Use different post.
A226: 2.5 | B226: 5 | C226: 2.5 | D226: 12.5 | E226: 2.5" | F226: 2.5" | G226: 2.5" | H226: 2.5" | I226: 2.5" | J226: 2.5" w/ 2.25" inside | K226: 2.5" w/ 2.25" inside | L226: 2.5" w/ 2.25" inside | M226: Sign too big. Use different post.
A227: 2.5 | B227: 5.5 | C227: 2.75 | D227: 13.75 | E227: 2.5" | F227: 2.5" | G227: 2.5" | H227: 2.5" w/ 2.25" inside | I227: 2.5" w/ 2.25" inside | J227: 2.5" w/ 2.25" inside | K227: 2.5" w/ 2.25" inside | L227: Sign too big. Use different post. | M227: Sign too big. Use different post.
A228: 2.5 | B228: 6 | C228: 3 | D228: 15 | E228: 2.5" | F228: 2.5" | G228: 2.5" w/ 2.25" inside | H228: 2.5" w/ 2.25" inside | I228: 2.5" w/ 2.25" inside | J228: 2.5" w/ 2.25" inside | K228: 2.5" w/ 2.25" inside | L228: Sign too big. Use different post. | M228: Sign too big. Use different post.
A229: 2.5 | B229: 6.5 | C229: 3.25 | D229: 16.25 | E229: 2.5" | F229: 2.5" w/ 2.25" inside | G229: 2.5" w/ 2.25" inside | H229: 2.5" w/ 2.25" inside | I229: 2.5" w/ 2.25" inside | J229: 2.5" w/ 2.25" inside | K229: 2.5" w/ 2.25" inside | L229: Sign too big. Use different post. | M229: Sign too big. Use different post.
A230: 2.5 | B230: 7 | C230: 3.5 | D230: 17.5 | E230: 2.5" w/ 2.25" inside | F230: 2.5" w/ 2.25" inside | G230: 2.5" w/ 2.25" inside | H230: 2.5" w/ 2.25" inside | I230: 2.5" w/ 2.25" inside | J230: 2.5" w/ 2.25" inside | K230: 2.5" w/ 2.25" inside | L230: Sign too big. Use different post. | M230: Sign too big. Use different post.
A231: 2.5 | B231: 7.5 | C231: 3.75 | D231: 18.75 | E231: 2.5" w/ 2.25" inside | F231: 2.5" w/ 2.25" inside | G231: 2.5" w/ 2.25" inside | H231: 2.5" w/ 2.25" inside | I231: 2.5" w/ 2.25" inside | J231: 2.5" w/ 2.25" inside | K231: Sign too big. Use different post. | L231: Sign too big. Use different post. | M231: Sign too big. Use different post.
A232: 2.5 | B232: 8 | C232: 4 | D232: 20 | E232: 2.5" w/ 2.25" inside | F232: 2.5" w/ 2.25" inside | G232: 2.5" w/ 2.25" inside | H232: 2.5" w/ 2.25" inside | I232: 2.5" w/ 2.25" inside | J232: Sign too big. Use different post. | K232: Sign too big. Use different post. | L232: Sign too big. Use different post. | M232: Sign too big. Use different post.
E234: 7
A235: width | B235: height | C235: centroid | D235: area | E235: 7 | F235: 8 | G235: 9 | H235: 10 | I235: 11 | J235: 12 | K235: 13 | L235: 14 | M235: 15
A236: 3 | B236: 1 | C236: =B236/2 -> 0.5 | D236: =A236*B236 -> 3 | E236: 2" | F236: 2" | G236: 2" | H236: 2" | I236: 2" | J236: 2" | K236: 2" | L236: 2" | M236: 2"
A237: 3 | B237: =B236+0.5 -> 1.5 | C237: =B237/2 -> 0.75 | D237: =A237*B237 -> 4.5 | E237: 2" | F237: 2" | G237: 2" | H237: 2" | I237: 2" | J237: 2" | K237: 2" | L237: 2" | M237: 2"
... 510 more rows

Sheet Channel Post Selector
A1: Channel Mounted Sign Post Selector
D4: Sign:
D6: Instructions
D7: -Fill in all shaded boxes.
D8: -Press the Enter key after each selection.
D10: Sign | I10: width ft. | Q10: Number of Posts: | X10: =(IF(L10=0," ",(IF(X12>30,"Error",IF(L10>8,"Error",IF(X12=0,0,IF(AND(X12<=24,L10>=4),2,IF(AND(X12>10,X12<=24,L10<4),2,IF(AND(X12<=10,L10<4),1,IF(X12>24,3," ")))))))))) -> 
D11: Dimensions | I11: height ft. | Q11: Post Size: | X11: =IF(L10=0," ",IF(OR(L10=5.5,L10=6.5,L10=7.5),0,IF(X12=0,0,IF(X12>0,3)))) ->  | Z11: lb/ft
Q12: Sign Size: | X12: =IF(L10=0,0,L11*L10) -> 0 | Z12: sq. ft.
H13: =(IF(X12>30,"Sign Too Big: Use Structural Post",(IF(L10>8,"Too Wide For 2 Channel Posts: Use Structural"," ")))) ->  | Q13: Sign Type: | X13: =IF(L10=0," ",IF(OR(L10=5.5,L10=6.5,L10=7.5),"Use 1 ft Increments for Extruded",IF(AND(X12<=30,L10<6),"Flat Sheet","Extruded"))) -> 
B25: MIN 5 ft - Rural | C25: OR | D25: MIN 7ft - Urban | Z25: Not less then 5 ft
E29: =IF(X10=3,TRUNC((1/6)*L10),"-") -> - | F29: ft | H29: =IF(X10=3,TRUNC((1/3)*L10),"-") -> - | I29: ft | K29: =IF(X10=3,TRUNC((1/3)*L10),"-") -> - | L29: ft | N29: =IF(X10=3,TRUNC((1/6)*L10),"-") -> - | O29: ft | Q29: =IF(X10=2,TRUNC((1/5)*L10), "-") -> - | R29: ft | U29: =IF(X10=2,TRUNC((3/5)*L10),"-") -> - | V29: ft | X29: =IF(X10=2,TRUNC((1/5)*L10), "-") -> - | Y29: ft
E30: =IF(X10=3,(((1/6)*L10)-E29)*12,"-") -> - | F30: in | H30: =IF(X10=3,(((1/3)*L10)-H29)*12,"-") -> - | I30: in | K30: =IF(X10=3,(((1/3)*L10)-K29)*12,"-") -> - | L30: in | N30: =IF(X10=3,(((1/6)*L10)-N29)*12,"-") -> - | O30: in | Q30: =IF(X10=2,(((1/5)*L10)-Q29)*12,"-") -> - | R30: in | U30: =IF(X10=2,(((3/5)*L10)-U29)*12,"-") -> - | V30: in | X30: =IF(X10=2,(((1/5)*L10)-X29)*12,"-") -> - | Y30: in
